bitfinex/quotes_ETHUSD_20220119
["timestamp","ask_amount","ask_price","bid_price","bid_amount"]
[1642604634950,0.00170527,3153.5,3153.4,6.8338]
[1642604635149,0.79269,3154.2,3153.4,25.4438]
[1642604635350,0.79269,3154.2,3153.6,0.79266]
[1642604635595,0.00511581,3154.1,3153.7,0.457]
[1642604635996,0.00454738,3154.0,3153.7,0.457]
[1642604636404,0.00397896,3153.9,3153.7,0.457]
[1642604636799,0.00341054,3153.8,3153.7,0.457]
[1642604638701,0.00341054,3153.8,3153.2,0.457]
[1642604638906,0.00341054,3153.8,3152.9,0.00170527]
[1642604639102,3.54970378,3153.9,3152.9,0.00170527]
[1642604639103,0.00284211,3153.7,3152.9,0.00170527]
[1642604639557,1.58824369,3153.6,3152.9,0.00170527]
[1642604639762,0.792973,3153.4,3152.9,0.00170527]
[1642604640563,0.793,3153.3,3152.9,0.00170527]
[1642604640762,0.00170527,3153.5,3153.0,19.85986]
[1642604640964,0.00113684,3153.4,3153.0,19.85986]
[1642604641264,0.00568423,3154.2,3153.1,3.23191452]
[1642604641467,0.00568423,3154.2,3153.2,0.1268]
[1642604641666,0.00401581,3154.1,3153.5,5.718]
[1642604641863,0.00401581,3154.1,3153.2,3.33681493]
[1642604641864,2.37798,3155.1,3153.9,24.86]
[1642604642065,0.01205582,3155.7,3154.2,5.718]
[1642604642066,0.1268,3155.7,3154.2,5.718]
[1642604642267,0.00284212,3154.6,3154.4,21.44557509]
[1642604642465,0.00284212,3154.6,3154.5,10.06571452]
[1642604642667,1.18008338,3156.1,3154.6,18.61]
[1642604642865,11.1915,3156.4,3154.8,18.61]
[1642604643110,0.00856847,3156.1,3155.1,0.79222]
[1642604643311,0.00856847,3156.1,3155.2,19.067]
[1642604643511,0.00800004,3156.0,3155.2,19.067]
[1642604643712,0.00800004,3156.0,3155.3,2.81912624]
[1642604643917,2.79743,3156.7,3155.4,19.067]
[1642604643918,0.00743162,3155.9,3155.4,19.067]
[1642604644119,0.00743162,3155.9,3155.7,0.79204]
[1642604644313,0.1267,3157.1,3155.8,18.61]
[1642604644515,1.21247915,3157.0,3155.9,3.30940753]
[1642604644716,0.01197901,3156.7,3156.0,0.457]
[1642604644915,0.01197901,3156.7,3155.7,0.4267]
[1642604644916,0.7921951,3156.6,3156.1,0.457]
[1642604645115,0.7921951,3156.6,3155.5,3.15821829]
[1642604645116,0.80360568,3156.6,3155.9,0.457]
[1642604645317,0.01084216,3156.5,3155.9,0.457]
[1642604645517,0.01084216,3156.5,3155.4,0.1267]
[1642604645518,0.31084216,3156.5,3155.4,0.1267]
[1642604645718,3.1697197,3156.3,3155.4,0.1267]
[1642604645917,0.1267,3156.2,3155.4,0.1267]
[1642604646117,0.81699216,3156.1,3155.4,0.1267]
[1642604646416,0.92832019,3156.2,3155.4,0.1267]
[1642604646417,0.00800004,3156.0,3155.4,1.6086772]
[1642604646845,0.00743162,3155.9,3155.4,1.6086772]
[1642604647046,0.00743162,3155.9,3155.7,1.2713858]
[1642604647246,0.7922397,3156.4,3155.4,1.9086772]
[1642604647247,0.0068632,3155.8,3155.4,1.9086772]
[1642604647441,0.0068632,3155.8,3155.5,0.457]
[1642604647643,0.00629477,3155.7,3155.5,0.457]
[1642604647946,0.79231,3156.3,3154.5,0.457]
[1642604647947,0.13242635,3155.6,3154.5,0.457]
[1642604648151,0.13242635,3155.6,3154.4,1.0]
[1642604648152,0.02406047,3155.5,3154.4,1.0]
[1642604648346,0.02406047,3155.5,3154.3,1.41570867]
[1642604648347,0.1267,3155.4,3154.3,1.41570867]
[1642604648545,0.1312895,3155.4,3154.3,1.41570867]
[1642604648747,0.79258,3155.2,3154.4,0.00109473]
[1642604648945,0.01430649,3155.1,3154.4,0.00109473]
[1642604649152,0.7926001,3155.0,3154.4,0.00109473]
[1642604649347,0.7926001,3155.0,3154.3,0.00166316]
[1642604649348,0.0249154,3154.8,3154.3,0.00166316]
[1642604649558,0.1268,3154.7,3154.2,0.00223158]
[1642604649747,0.02320028,3154.6,3153.5,0.00621054]
[1642604649946,0.79281,3154.4,3153.5,0.00621054]
[1642604650146,0.02185202,3154.3,3153.5,0.00621054]
[1642604650353,1.11464202,3154.3,3153.4,0.00677897]
[1642604650796,1.11464202,3154.3,3153.3,0.00734739]
[1642604650797,0.81464202,3154.3,3153.3,0.00734739]
[1642604650995,0.81464202,3154.3,3153.4,1.67827515]
[1642604651195,0.81464202,3154.3,3153.4,1.55147515]
[1642604651496,0.7927998,3154.1,3153.5,0.00621054]
[1642604651703,0.7928,3154.0,3153.5,0.00621054]
[1642604652100,0.7928,3154.0,3153.3,0.00734739]
[1642604652501,0.7928631,3153.9,3153.3,0.00734739]
[1642604652699,0.79297,3153.8,3153.3,0.00734739]
[1642604652900,0.79297,3153.8,3152.8,0.1268]
[1642604653102,0.00227369,3153.7,3153.6,1.35016834]
[1642604653302,0.00227369,3153.7,3153.6,28.8700721]
[1642604653501,0.00227369,3153.7,3153.6,29.6270721]
[1642604653703,0.00227369,3153.7,3153.6,30.5465421]
[1642604653903,0.79256,3155.0,3153.7,6.25240323]
[1642604654103,0.1268,3155.5,3153.9,18.61]
[1642604654375,0.00682109,3154.9,3154.1,18.61]
[1642604654559,0.00682109,3154.9,3154.2,4.17120601]
[1642604654757,0.00625266,3154.8,3154.3,0.79249]
[1642604654960,0.00625266,3154.8,3154.6,1.16757598]
[1642604655159,3.6655,3155.6,3154.6,1.16757598]
[1642604655160,0.22101577,3156.0,3154.7,3.83180083]
[1642604655359,0.79242,3155.8,3154.7,4.13180083]
[1642604655560,0.0096632,3155.4,3154.7,4.08180083]
[1642604655961,0.00909478,3155.3,3154.7,4.08180083]
[1642604656260,0.22101577,3156.0,3154.7,4.08180083]
[1642604656261,0.00852636,3155.2,3154.8,1.53928376]
[1642604656460,0.00852636,3155.2,3154.9,3.14857549]
[1642604656661,0.00795793,3155.1,3154.9,2.88648449]
[1642604657063,0.00738951,3155.0,3154.7,3.36223364]
[1642604657363,0.00682109,3154.9,3154.7,3.36223364]
[1642604657561,0.00682109,3154.9,3154.7,3.11223364]
[1642604657763,0.00625266,3154.8,3154.6,0.457]
[1642604657990,0.00625266,3154.8,3154.7,3.04767174]
[1642604658196,0.00568424,3154.7,3154.6,4.207]
[1642604658399,0.00625266,3154.8,3154.6,7.1893722]
[1642604658595,0.7924503,3155.4,3154.6,7.1893722]
[1642604658596,0.00568424,3154.7,3154.6,7.1893722]
[1642604658794,0.00568424,3154.7,3154.6,7.4393722]
[1642604659196,0.00568424,3154.7,3154.6,7.5660722]
[1642604659400,0.00568424,3154.7,3154.6,26.1760722]
[1642604659597,0.00568424,3154.7,3154.6,3.8160722]
[1642604659798,0.00568424,3154.7,3154.6,1.62609]
[1642604659999,0.00568424,3154.7,3154.6,3.39191719]
[1642604660301,0.00568424,3154.7,3154.6,0.707]
[1642604660499,0.00568424,3154.7,3154.6,3.70464573]
[1642604660699,0.00568424,3154.7,3154.6,0.707]
[1642604660898,0.00568424,3154.7,3154.6,4.54082592]
[1642604661099,0.00568424,3154.7,3154.6,0.707]
[1642604661299,0.00568424,3154.7,3154.6,0.657]
[1642604661740,0.00568424,3154.7,3154.6,3.64489067]
[1642604661945,0.00568424,3154.7,3154.6,0.407]
[1642604663744,0.00568424,3154.7,3154.6,0.357]
[1642604664745,0.00568424,3154.7,3154.6,4.96981816]
[1642604664950,0.00568424,3154.7,3154.6,23.74101955]
[1642604665149,0.13819997,3156.4,3154.8,0.03502343]
[1642604665347,0.13819997,3156.4,3154.9,0.457]
[1642604665594,0.13819997,3156.4,3155.0,3.34510966]
[1642604665595,0.00682108,3155.9,3155.0,3.34510966]
[1642604665794,0.00682108,3155.9,3155.2,18.61]
[1642604665996,0.00625266,3155.8,3155.4,1.58437]
[1642604666195,0.79853266,3155.8,3155.5,0.457]
[1642604666396,0.00568423,3155.7,3155.5,0.457]
[1642604666596,0.00568423,3155.7,3155.0,0.1267]
[1642604666796,0.79754451,3155.6,3154.9,0.457]
[1642604667200,2.38194229,3155.5,3154.9,0.457]
[1642604667398,2.38194229,3155.5,3154.1,0.1256]
[1642604667399,2.50864229,3155.5,3154.1,4.9122822]
[1642604667599,2.50864229,3155.5,3154.1,0.1267]
[1642604667600,0.79253,3155.2,3154.1,0.1267]
[1642604667798,0.79253,3155.2,3154.5,0.00113685]
[1642604667996,0.79253,3155.2,3154.2,0.00284212]
[1642604667997,1.10699844,3155.1,3154.2,0.00284212]
[1642604668201,0.1267,3155.0,3154.2,0.00284212]
[1642604668501,0.79377685,3154.9,3154.3,1.23015087]
[1642604668801,0.79377685,3154.9,3154.4,0.00170527]
[1642604670742,1.58534,3154.8,3154.4,0.00170527]
[1642604670941,1.60316583,3154.8,3154.4,0.00170527]
[1642604671143,1.60316583,3154.8,3154.2,0.00284212]
[1642604671341,3.17065,3154.8,3154.2,0.00284212]
[1642604671540,0.79266,3154.7,3154.2,0.00284212]
[1642604671740,0.79267,3154.6,3154.2,0.00284212]
[1642604672142,0.3,3154.5,3154.2,0.00284212]
[1642604672744,0.79267,3154.6,3154.2,0.00284212]
[1642604673396,0.79267,3154.6,3153.9,0.79267]
[1642604673797,0.79267,3154.6,3154.0,0.00397897]
[1642604673998,0.79267,3154.6,3154.0,1.58909897]
[1642604674199,0.79254,3154.8,3154.3,1.55223215]
[1642604674398,0.00113685,3154.9,3154.4,0.79244]
[1642604674597,0.00113685,3154.9,3154.4,1.09414527]
[1642604674798,0.00113685,3154.9,3154.5,0.00113685]
[1642604676198,0.00113685,3154.9,3154.4,0.00170527]
[1642604676398,1.58631685,3154.9,3154.4,0.00170527]
[1642604676748,1.58631685,3154.9,3154.3,0.0022737]
[1642604676749,2.12939167,3154.8,3154.3,0.0022737]
[1642604676944,1.18701532,3154.7,3154.3,0.0022737]
[1642604677346,5.26121549,3154.8,3154.3,0.0022737]
[1642604677549,4.35896033,3154.7,3154.3,0.0022737]
[1642604677746,3.1712396,3154.7,3154.3,0.0022737]
[1642604677951,1.98055761,3154.6,3154.3,0.0022737]
[1642604678151,1.88558,3154.6,3154.3,0.0022737]
[1642604678548,1.18836854,3154.5,3154.3,0.0022737]
[1642604679549,2.6783525,3154.6,3154.3,0.0022737]
[1642604679849,1.18841221,3154.5,3154.3,0.0022737]
[1642604680051,2.6783525,3154.6,3154.3,0.0022737]
[1642604680248,0.79271,3154.3,3153.8,0.00511581]
[1642604680506,0.79271,3154.3,3153.9,0.79268]
[1642604680898,0.79271,3154.3,3154.0,0.00397897]
[1642604681497,0.79271,3154.3,3153.8,0.00511581]
[1642604682496,1.58547,3154.3,3153.8,0.00511581]
[1642604682702,0.79276,3154.2,3153.6,3.23803188]
[1642604682901,0.79503369,3154.2,3153.6,1.79286904]
[1642604683103,0.00170527,3154.1,3153.6,1.79286904]
[1642604683303,0.00170527,3154.1,3153.6,0.20751904]
[1642604683502,0.00113684,3154.0,3153.5,0.1268]
[1642604683703,0.79394684,3154.0,3153.6,1.42010882]
[1642604683902,0.79281,3154.0,3153.6,0.00113685]
[1642604684742,1.1902122,3153.9,3153.6,0.00113685]
[1642604684942,1.22349016,3153.9,3153.6,0.00113685]
[1642604685142,1.1902122,3153.8,3153.1,1.42337456]
[1642604685348,1.9832122,3153.7,3153.1,0.00397897]
[1642604685542,1.9832122,3153.7,3153.2,0.00341054]
[1642604685748,1.9832122,3153.7,3152.7,0.1268]
[1642604685749,1.18884778,3153.6,3152.9,0.00511581]
[1642604685952,3.59615442,3153.5,3152.8,0.00568424]
[1642604686148,1.18884778,3153.4,3152.8,0.00568424]
[1642604686349,1.18884778,3153.3,3152.8,0.00568424]
[1642604686548,3.65819316,3153.7,3152.8,0.00568424]
[1642604686549,1.18884778,3153.2,3152.8,0.00568424]
[1642604686757,5.77488124,3154.1,3152.8,1.59137424]
[1642604686952,1.94946195,3154.0,3152.8,0.30568424]
[1642604687151,1.58597,3153.4,3152.9,0.00511581]
[1642604687352,1.94953195,3153.3,3152.9,0.00511581]
[1642604687551,0.79291,3153.3,3152.9,0.00511581]
[1642604688023,0.79291,3153.3,3152.8,0.00568424]
[1642604688024,1.58591,3153.3,3152.8,0.00568424]
[1642604688424,1.46809856,3153.2,3152.8,0.00568424]
[1642604688624,4.75943124,3153.1,3152.6,0.00682108]
[1642604688924,4.75943124,3153.1,3152.1,0.0096632]
[1642604688925,2.08805966,3153.0,3152.1,0.0096632]
[1642604689127,0.79318,3152.8,3152.1,0.0096632]
[1642604689325,3.68893191,3152.7,3152.0,0.01023162]
[1642604689524,3.68893191,3152.7,3151.9,0.01080005]
[1642604689723,0.79322,3152.6,3151.8,0.01136847]
[1642604689924,0.7933619,3152.4,3151.8,0.01136847]
[1642604690127,0.79336,3152.2,3151.4,0.01364217]
[1642604690529,0.79336,3152.2,3151.5,1.44926831]
[1642604690732,0.79336,3152.2,3151.4,0.01364217]
[1642604690733,3.4981289,3152.1,3151.4,0.01364217]
[1642604690928,3.4981289,3152.1,3151.6,0.01250532]
[1642604690929,0.1269,3152.0,3151.6,0.01250532]
[1642604691230,0.1269,3152.0,3151.3,0.01421059]
[1642604691231,0.01736559,3151.9,3151.3,0.01421059]
[1642604691431,0.1269,3151.8,3151.3,0.01421059]
[1642604691628,0.4269,3151.8,3151.3,0.01421059]
[1642604691860,3.47276018,3151.7,3151.3,0.01421059]
[1642604692060,0.1269,3151.6,3151.3,0.01421059]
[1642604692262,0.92053,3151.6,3151.3,0.01421059]
[1642604692459,0.92053,3151.6,3151.2,0.01831587]
[1642604692460,4.95,3151.4,3151.2,0.01831587]
[1642604692661,5.74363,3151.4,3151.2,0.01831587]
[1642604692860,7.68424806,3151.3,3151.2,0.01831587]
[1642604693064,7.68424806,3151.3,3150.5,3.107e-05]
[1642604693065,4.45,3151.2,3150.5,3.107e-05]
[1642604693262,3.79496623,3151.1,3150.5,3.107e-05]
[1642604693462,4.09496623,3151.1,3150.6,0.00397896]
[1642604693663,1.58754,3151.0,3150.6,0.00397896]
[1642604694464,2.3813,3150.9,3150.8,1.39269187]
[1642604694666,3.17620684,3151.5,3150.8,1.39269187]
[1642604694667,0.00113684,3151.5,3150.8,1.39269187]
[1642604694868,0.00113684,3151.5,3150.8,1.39553399]
[1642604695063,0.00113684,3151.5,3150.9,0.00227369]
[1642604695496,0.79454684,3151.5,3150.9,0.00227369]
[1642604695900,1.58799344,3151.5,3150.9,0.00227369]
[1642604696101,1.88799344,3151.5,3150.9,0.00227369]
[1642604696506,0.00113684,3151.5,3151.1,18.61]
[1642604696703,0.00113684,3151.5,3151.1,18.991]
[1642604696902,0.00113684,3151.5,3151.1,0.381]
[1642604697303,0.00113684,3151.5,3150.9,0.00227369]
[1642604697805,0.00113684,3151.5,3150.7,0.00341054]
[1642604698104,0.00113684,3151.5,3150.9,1.25562935]
[1642604698309,1.58803514,3151.5,3150.9,19.86562935]
[1642604698504,1.58803514,3151.5,3151.0,0.00170527]
[1642604699247,0.79454684,3151.5,3151.0,0.00170527]
[1642604699855,0.79454684,3151.5,3151.3,1.5135969]
[1642604699856,0.00113684,3151.5,3151.3,1.5135969]
[1642604700052,0.00113684,3151.5,3151.4,18.61]
[1642604700250,0.00113684,3151.5,3151.3,1.5135969]
[1642604700451,0.00113684,3151.5,3151.3,0.3]
[1642604700855,0.00113684,3151.5,3151.1,19.4179]
[1642604701452,0.00113684,3151.5,3151.1,20.5328938]
[1642604702053,0.00113684,3151.5,3151.3,18.61]
[1642604702257,0.00113684,3151.5,3151.4,6.631]
[1642604702859,0.00113684,3151.5,3151.4,26.82721]
[1642604703102,0.00113684,3151.5,3151.4,0.381]
[1642604703705,0.00113684,3151.5,3151.4,6.331]
[1642604704104,0.00113684,3151.5,3151.4,0.381]
[1642604704307,0.00113684,3151.5,3151.0,0.00170527]
[1642604704703,0.79353,3151.4,3150.9,0.00227369]
[1642604705105,2.6805208,3151.4,3150.9,0.00227369]
[1642604705307,0.1269,3151.3,3150.9,0.00227369]
[1642604705606,0.1269,3151.3,3150.5,3.107e-05]
[1642604705607,6.25170527,3151.2,3150.5,3.107e-05]
[1642604705807,0.01239044,3150.9,3150.5,3.107e-05]
[1642604706011,6.55,3150.7,3149.3,3.5]
[1642604706204,6.55,3150.7,3149.0,1.0]
[1642604706205,0.92073,3150.6,3149.0,1.0]
[1642604706405,0.92073,3150.6,3149.4,1.32950937]
[1642604706406,1.58768,3150.1,3149.4,1.32950937]
[1642604706851,0.3,3150.3,3149.5,0.00625266]
[1642604707051,0.79371,3150.3,3149.5,0.00625266]
[1642604707852,1.5874551,3150.3,3149.5,0.00625266]
[1642604708055,1.5874551,3150.3,3149.5,0.13315266]
[1642604708454,3.45928546,3150.2,3149.6,0.00568424]
[1642604708658,0.79371,3150.3,3149.6,0.00568424]
[1642604708857,0.7939598,3149.8,3149.6,0.00568424]
[1642604709058,0.79388,3149.9,3149.3,0.00738951]
[1642604709259,0.79388,3149.9,3149.0,0.00909478]
[1642604709458,1.88809,3149.8,3149.0,0.00909478]
[1642604709657,1.88809,3149.8,3148.8,0.01023163]
[1642604709859,1.88809,3149.8,3148.6,0.1708842]
[1642604709860,0.79402,3149.7,3148.7,0.01080005]
[1642604710500,2.38211,3149.6,3148.7,0.01080005]
[1642604710805,0.79396,3149.2,3149.0,1.31987285]
[1642604711001,0.79396,3149.2,3148.7,18.62080005]
[1642604711002,2.68179,3150.5,3149.6,2.46729279]
[1642604711403,2.68179,3150.5,3149.7,0.00511581]
[1642604711404,2.69419353,3150.5,3149.7,0.00511581]
[1642604711701,2.5087055,3150.4,3149.7,0.00511581]
[1642604712099,1.58785,3150.1,3149.7,0.00511581]
[1642604712307,1.5878378,3150.0,3149.7,0.00511581]
[1642604712502,0.3,3150.0,3149.7,0.00511581]
[1642604712905,1.0939125,3150.0,3149.7,0.00511581]
[1642604713106,0.79391,3149.9,3149.7,0.00511581]
[1642604713608,0.3,3149.8,3149.7,0.00511581]
[1642604714007,1.0939157,3149.8,3149.7,0.00511581]
[1642604714263,0.7939157,3149.8,3149.7,0.00511581]
[1642604714455,1.0939157,3149.8,3149.7,0.00511581]
[1642604714857,0.7939157,3149.8,3149.7,0.00511581]
[1642604715058,10.88759016,3149.8,3149.7,0.00511581]
[1642604715256,7.3439157,3149.8,3149.7,0.00511581]
[1642604715456,5.64416,3149.7,3149.0,0.1269]
[1642604715657,7.504,3149.3,3149.0,0.1269]
[1642604715856,7.504,3149.3,3149.1,0.00341055]
[1642604716156,0.3,3149.2,3149.1,0.00341055]
[1642604717155,1.09412,3149.2,3149.1,0.00341055]
[1642604717355,1.88824,3149.2,3149.1,0.00341055]
[1642604717556,1.09412,3149.2,3149.1,0.00341055]
[1642604718602,0.3,3149.2,3149.1,0.00341055]
[1642604719007,7.504,3149.3,3148.5,0.00682109]
[1642604719206,7.504,3149.3,3148.8,1.22485508]
[1642604719506,7.504,3149.3,3148.9,19.12254739]
[1642604720002,7.504,3149.3,3149.0,0.12877897]
[1642604720202,7.504,3149.3,3149.2,6.39369]
[1642604720404,7.504,3149.3,3149.2,25.38469]
[1642604720602,1.26493684,3150.8,3149.2,25.38469]
[1642604720603,0.12813684,3150.8,3150.0,1.50618929]
[1642604720904,0.00568423,3150.7,3149.7,0.381]
[1642604721303,0.00511581,3150.6,3149.7,0.381]
[1642604721606,0.79382,3150.2,3149.7,0.381]
[1642604721847,0.7938103,3150.1,3149.7,0.381]
[1642604722047,0.3,3150.0,3149.7,0.381]
[1642604722250,3.79735101,3150.0,3149.2,0.00284212]
[1642604722452,0.12813684,3149.9,3149.2,0.00284212]
[1642604722650,0.79405,3149.8,3149.0,0.00397897]
[1642604722851,0.79405,3149.8,3148.6,0.00625266]
[1642604722852,0.127,3149.7,3148.6,0.00625266]
[1642604723052,0.79405,3149.6,3148.6,0.00625266]
[1642604723252,0.427,3149.7,3148.6,0.00625266]
[1642604723253,0.127,3149.5,3148.6,0.00625266]
[1642604723452,0.127,3149.6,3148.6,0.00625266]
[1642604724054,1.5880371,3149.4,3148.6,0.00625266]
[1642604724258,0.92102,3149.4,3148.6,0.00625266]
[1642604724455,1.22102,3149.4,3148.6,0.00625266]
[1642604725154,1.5882239,3149.2,3148.6,0.00625266]
[1642604725627,2.3821077,3149.6,3148.6,0.00625266]
[1642604725628,1.68474661,3149.7,3149.0,7.61665226]
[1642604725834,0.00113684,3149.9,3149.6,0.01204612]
[1642604726031,0.00113684,3149.9,3149.7,0.03649159]
[1642604726229,0.79485214,3149.9,3149.7,0.5079]
[1642604728634,0.79485214,3149.9,3149.7,0.381]
[1642604729263,0.00113684,3149.9,3149.8,9.44624124]
[1642604729461,0.00113684,3149.9,3149.8,9.95414124]
[1642604729658,0.00113684,3149.9,3149.8,6.7579]
[1642604729856,0.00113684,3149.9,3149.8,0.381]
[1642604730459,3.00113684,3149.9,3149.5,0.01248452]
[1642604730760,3.79504684,3149.9,3149.5,0.01248452]
[1642604731559,0.3,3149.8,3149.0,0.1269]
[1642604731763,0.79403,3149.7,3149.0,0.1269]
[1642604731967,0.7940237,3149.6,3149.0,0.1269]
[1642604732162,1.0940237,3149.6,3149.0,0.1269]
[1642604732361,0.79402,3149.5,3149.0,0.1269]
[1642604732995,0.79402,3149.5,3149.1,1.26203203]
[1642604733203,0.1269,3149.8,3149.2,1.62559837]
[1642604733403,0.1269,3149.8,3149.4,18.61]
[1642604733604,0.00113684,3149.9,3149.7,1.54816558]
[1642604733804,0.23251574,3151.4,3149.7,1.54816558]
[1642604733805,0.23251574,3151.4,3149.9,18.61]
[1642604734103,0.00568424,3150.9,3150.0,22.43484124]
[1642604734304,0.00568424,3150.9,3150.6,0.79351]
[1642604734609,0.7934672,3151.3,3150.7,0.1269]
[1642604734610,0.00511581,3150.8,3150.7,0.1269]
[1642604734803,0.00511581,3150.8,3150.6,1.17451]
[1642604735004,0.00511581,3150.8,3150.6,0.381]
[1642604735304,0.00454739,3150.7,3150.6,4.731]
[1642604735505,0.00454739,3150.7,3150.6,0.381]
[1642604735702,0.00454739,3150.7,3150.6,0.231]
[1642604736106,0.00454739,3150.7,3150.6,1.47442083]
[1642604736303,0.00454739,3150.7,3150.6,1.60132083]
[1642604736943,0.00454739,3150.7,3150.6,0.3579]
[1642604737148,0.00454739,3150.7,3150.6,1.60156212]
[1642604737344,0.00454739,3150.7,3150.6,6.00190826]
[1642604737544,0.00454739,3150.7,3150.6,9.32270053]
[1642604737745,0.00454739,3150.7,3150.6,27.93270053]
[1642604737945,0.00454739,3150.7,3150.6,9.32270053]
[1642604738149,0.00454739,3150.7,3150.6,10.32270053]
[1642604738351,0.00454739,3150.7,3150.6,9.32270053]
[1642604738553,0.1269,3152.1,3151.4,1.31043673]
[1642604738752,0.79319,3152.2,3151.4,0.381]
[1642604738951,1.58652,3152.3,3151.4,0.381]
[1642604739151,1.50552119,3152.2,3151.4,0.381]
[1642604739350,2.96515519,3152.1,3151.4,0.381]
[1642604739550,1.09335,3152.1,3151.4,0.381]
[1642604739755,1.09335,3152.1,3150.5,0.1248]
[1642604739756,5.04926824,3152.0,3150.5,0.1248]
[1642604739952,0.02166896,3151.4,3149.9,0.1232]
[1642604740152,2.508086,3151.3,3150.0,1.2450269]
[1642604740351,2.68459654,3151.3,3150.1,1.3719269]
[1642604740599,2.68459654,3151.3,3150.2,1.2450269]
[1642604740600,0.7937,3151.0,3150.2,1.2450269]
[1642604740800,0.79356,3150.8,3150.2,1.24786902]
[1642604741001,0.79356,3150.8,3150.3,0.00227369]
[1642604741401,0.79356,3150.8,3150.1,0.00341054]
[1642604741600,0.79367,3150.7,3150.2,0.00284212]
[1642604741803,0.7937,3150.6,3150.0,1.25083088]
[1642604742002,0.7937,3150.6,3150.1,4.15026426]
[1642604742206,0.00113685,3150.9,3150.3,0.01203368]
[1642604742408,0.00113685,3150.9,3150.4,1.62785192]
[1642604742605,0.00113685,3150.9,3150.8,6.25]
[1642604742807,0.00113685,3150.9,3150.8,7.87785192]
[1642604743004,0.00113685,3150.9,3150.8,26.61185192]
[1642604743208,0.00113685,3150.9,3150.8,8.00825192]
[1642604743411,0.00113685,3150.9,3150.8,7.87785192]
[1642604743609,0.00113685,3150.9,3150.8,8.67113192]
[1642604744009,0.00113685,3150.9,3150.8,1.62785192]
[1642604744256,0.00113685,3150.9,3150.8,5.431]
[1642604744455,0.00113685,3150.9,3150.8,6.80725052]
[1642604744653,0.00113685,3150.9,3150.8,6.68035052]
[1642604744855,0.00113685,3150.9,3150.8,8.11771494]
[1642604745059,0.00113685,3150.9,3150.8,8.26011494]
[1642604745357,1.1823,3152.4,3150.9,6.25]
[1642604745557,7.45,3152.8,3151.0,5.96565106]
[1642604745755,0.00454738,3151.7,3151.3,0.79312]
[1642604745955,1.38457656,3152.7,3151.3,0.79312]
[1642604745956,1.38457656,3152.7,3151.5,6.25]
[1642604746158,3.19624124,3153.1,3151.6,0.5078]
[1642604746358,0.00511582,3152.6,3151.7,1.586]
[1642604746558,0.00511582,3152.6,3151.8,0.381]
[1642604746758,0.00454739,3152.5,3151.8,0.501]
[1642604746955,1.59123739,3152.5,3151.8,0.381]
[1642604747156,0.92412897,3152.4,3151.6,0.1268]
[1642604747359,0.79726737,3152.4,3151.6,0.1268]
[1642604747557,1.66833481,3152.3,3151.6,0.1268]
[1642604747762,0.1269,3152.2,3151.6,0.1268]
[1642604747996,0.00284212,3152.2,3151.6,0.1268]
[1642604748203,0.0022737,3152.1,3151.6,0.1268]
[1642604748500,0.00170528,3152.0,3151.6,0.1268]
[1642604748901,0.00113685,3151.9,3151.6,0.1268]
[1642604749302,0.00170528,3152.0,3151.6,0.1268]
[1642604749502,0.7932904,3151.9,3151.6,0.1268]
[1642604749702,0.79442725,3151.9,3151.4,0.12860527]
[1642604750103,0.79442725,3151.9,3151.5,0.00113684]
[1642604750707,0.79442725,3151.9,3151.5,0.79446684]
[1642604750708,0.00113685,3151.9,3151.5,0.79446684]
[1642604751505,0.00113685,3151.9,3151.5,0.00113684]
[1642604752149,0.1269,3151.8,3151.5,0.00113684]
[1642604752350,0.7934252,3151.8,3151.5,0.00113684]
[1642604752549,0.9203252,3151.8,3151.5,0.00113684]
[1642604753051,1.5870589,3151.7,3150.7,0.00568423]
[1642604753451,0.7935295,3151.6,3150.7,0.00568423]
[1642604754051,0.7935295,3151.6,3150.9,0.7935]
[1642604754553,3.72130677,3151.5,3151.0,0.00397896]
[1642604754851,0.80961724,3151.4,3150.7,0.00568423]
[1642604755051,0.1269,3151.3,3150.7,0.00568423]
[1642604755354,0.1269,3151.3,3150.2,0.00852635]
[1642604755355,1.58731,3151.2,3150.2,0.00852635]
[1642604755598,1.58731,3151.2,3150.3,1.2630675]
[1642604756099,0.1269,3151.5,3150.5,0.79353]
[1642604756299,0.1269,3151.6,3150.5,0.79353]
[1642604756502,0.1269,3151.6,3150.6,0.00625265]
[1642604757097,1.5870549,3151.7,3150.6,0.00625265]
[1642604757298,1.5870549,3151.7,3150.5,0.00682108]
[1642604757597,1.5870549,3151.7,3150.6,2.0533883]
[1642604757598,0.7935275,3151.3,3150.6,2.0533883]
[1642604757799,0.7935275,3151.3,3150.7,1.2598983]
[1642604758002,1.5870549,3151.7,3150.7,1.26558253]
[1642604758203,0.1269,3151.8,3150.8,0.00511581]
[1642604758402,0.1269,3151.8,3150.8,0.79862581]
[1642604758602,0.1269,3151.8,3150.8,0.79351]
[1642604758804,0.1269,3151.8,3150.9,0.00454738]
[1642604759649,0.7934905,3151.7,3150.9,0.00454738]
[1642604759849,0.1269,3151.8,3150.9,0.00454738]
[1642604760251,0.1269,3151.8,3151.0,0.79349]
[1642604760451,0.1269,3151.8,3150.9,0.00454738]
[1642604760654,0.1269,3151.8,3151.1,0.00341054]
[1642604760851,0.1269,3151.8,3150.6,0.79349]
[1642604760852,0.793522,3151.6,3150.7,0.00568423]
[1642604761053,0.01280265,3151.4,3150.7,0.00568423]
[1642604761251,0.01280265,3151.4,3150.5,3.6269]
[1642604761252,0.01467624,3151.2,3150.6,0.00625265]
[1642604761454,0.1269,3151.1,3150.6,0.00625265]
[1642604761652,0.1269,3151.3,3150.6,0.00625265]
[1642604761952,1.36471161,3151.2,3150.6,0.00625265]
[1642604762151,0.1269,3151.1,3150.6,0.00625265]
[1642604762351,0.92068,3151.1,3150.6,0.00625265]
[1642604762552,0.7937783,3151.1,3150.6,0.00625265]
[1642604762754,0.9206783,3151.1,3150.6,0.00625265]
[1642604763003,0.7937783,3151.1,3150.6,0.79983265]
[1642604763211,0.7937783,3151.1,3150.6,0.00625265]
[1642604763406,0.7937783,3151.1,3150.7,0.00568423]
[1642604763607,0.1269,3151.3,3150.6,0.00625265]
[1642604764608,0.1269,3151.3,3150.6,0.79983265]
[1642604764808,0.1269,3151.5,3150.6,0.79983265]
[1642604765009,1.3667248,3151.4,3150.7,0.00568423]
[1642604765210,0.7935987,3151.2,3150.7,0.00568423]
[1642604766011,0.7935987,3151.2,3150.5,0.00682108]
[1642604766411,0.79368,3151.6,3150.3,0.00795792]
[1642604766412,0.7936775,3151.0,3150.3,0.00795792]